bitfinex/quotes_ETHUSD_20220105
["timestamp","ask_amount","ask_price","bid_price","bid_amount"]
[1641374817536,10.0,3829.4,3829.3,0.95699356]
[1641374817934,10.0,3829.4,3829.3,0.65699356]
[1641374818134,10.0,3829.4,3829.3,0.95699356]
[1641374820791,4.7757568,3829.4,3829.3,3.63591233]
[1641374821387,4.7757568,3829.4,3829.3,0.95699356]
[1641374822790,4.7757568,3829.4,3829.3,3.60150561]
[1641374822990,4.7757568,3829.4,3829.3,0.95699356]
[1641374823999,4.7757568,3829.4,3829.3,3.65858663]
[1641374825126,4.7757568,3829.4,3829.3,0.95699356]
[1641374825326,4.7757568,3829.4,3829.3,3.6596127]
[1641374825527,4.7757568,3829.4,3829.3,0.95699356]
[1641374826127,4.7757568,3829.4,3829.3,3.61168091]
[1641374826327,4.7757568,3829.4,3829.3,0.95699356]
[1641374827132,4.7757568,3829.4,3829.3,0.77839008]
[1641374827529,4.7757568,3829.4,3829.3,3.42435469]
[1641374827729,4.7757568,3829.4,3829.3,3.42140141]
[1641374827929,4.7757568,3829.4,3829.3,3.42456972]
[1641374828129,4.7757568,3829.4,3829.3,0.77839008]
[1641374828802,4.7757568,3829.4,3829.3,3.44309256]
[1641374829002,4.7757568,3829.4,3829.3,0.77839008]
[1641374831604,4.7757568,3829.4,3829.3,3.47839008]
[1641374831803,4.7757568,3829.4,3829.3,3.84001154]
[1641374832031,4.7757568,3829.4,3829.3,0.77839008]
[1641374835240,4.7757568,3829.4,3829.3,3.41462207]
[1641374835881,4.7757568,3829.4,3829.3,0.77839008]
[1641374836682,4.7757568,3829.4,3829.3,0.77441112]
[1641374838689,4.7757568,3829.4,3829.3,0.47441112]
[1641374838890,7.83737826,3829.4,3829.3,0.77441112]
[1641374839189,4.7757568,3829.4,3829.3,0.47441112]
[1641374839389,4.7757568,3829.4,3829.0,61.23338832]
[1641374839644,0.6532,3829.2,3829.0,61.23338832]
[1641374839844,0.6532,3829.2,3829.1,0.00511581]
[1641374840044,1.28511993,3829.1,3829.0,56.01293413]
[1641374840440,1.28511993,3829.1,3829.0,50.78743413]
[1641374840842,1.28511993,3829.1,3829.0,51.08743413]
[1641374841042,1.28511993,3829.1,3829.0,45.86194413]
[1641374848134,1.3064,3829.2,3829.0,45.86194413]
[1641374848334,0.6532,3829.2,3829.0,45.86194413]
[1641374848535,0.6532,3829.2,3829.0,46.51504943]
[1641374850536,0.6532,3829.2,3829.0,47.16810943]
[1641374850801,0.6532,3829.2,3829.0,47.46810943]
[1641374850992,0.6532,3829.2,3829.1,3.04587986]
[1641374851995,0.4032,3829.2,3829.1,3.04587986]
[1641374854296,0.4032,3829.2,3829.1,3.34587986]
[1641374854842,0.4032,3829.2,3829.1,3.04587986]
[1641374855244,0.4032,3829.2,3829.1,3.34587986]
[1641374856947,4.7757568,3829.4,3829.1,3.72487986]
[1641374857149,4.7757568,3829.4,3829.3,6.06259783]
[1641374857350,4.7757568,3829.4,3829.3,25.61499213]
[1641374857549,5.25224104,3830.7,3829.6,1.9584701]
[1641374857750,5.25224104,3830.7,3830.0,1.0120064]
[1641374857949,5.25224104,3830.7,3830.0,1.3910064]
[1641374857950,9.06600112,3830.7,3830.0,1.3910064]
[1641374858149,1.30562,3830.3,3830.0,1.6910064]
[1641374858594,1.30562,3830.3,3830.1,1.3056514]
[1641374858791,1.30562,3830.3,3830.1,2.4764514]
[1641374859193,1.30562,3830.3,3830.2,2.8314105]
[1641374859592,1.31244108,3830.3,3830.2,2.8314105]
[1641374860393,1.31244108,3830.3,3830.2,3.2104105]
[1641374860394,0.00682108,3830.3,3830.2,3.2104105]
[1641374863233,0.00682108,3830.3,3830.2,4.0750105]
[1641374863437,0.00682108,3830.3,3830.2,1.2436]
[1641374864237,0.00682108,3830.3,3830.2,0.379]
[1641374864636,0.00682108,3830.3,3830.2,3.57102036]
[1641374864839,0.00682108,3830.3,3830.2,4.21002036]
[1641374865238,0.00682108,3830.3,3830.2,4.668]
[1641374865638,0.00682108,3830.3,3830.2,1.018]
[1641374865892,0.00682108,3830.3,3830.2,0.379]
[1641374866292,0.00682108,3830.3,3830.2,3.279]
[1641374866293,0.00508336,3830.3,3830.2,3.279]
[1641374866496,0.00508336,3830.3,3830.2,0.379]
[1641374868497,0.00508336,3830.3,3830.2,0.679]
[1641374870436,0.00508336,3830.3,3830.2,1.78541676]
[1641374870637,0.00508336,3830.3,3830.2,2.43818676]
[1641374871337,0.00508336,3830.3,3830.2,0.679]
[1641374873141,0.00508336,3830.3,3830.2,0.979]
[1641374873388,0.00508336,3830.3,3830.2,4.429]
[1641374873589,0.00508336,3830.3,3830.2,0.679]
[1641374873786,0.00508336,3830.3,3830.2,1.93177609]
[1641374873986,0.00508336,3830.3,3830.2,0.679]
[1641374874190,0.00508336,3830.3,3830.2,3.029]
[1641374874588,0.00508336,3830.3,3830.2,4.26940934]
[1641374875190,0.00508336,3830.3,3830.2,8.46940934]
[1641374875389,0.00508336,3830.3,3830.2,5.26940934]
[1641374876791,0.00508336,3830.3,3830.2,4.029]
[1641374877644,0.00508336,3830.3,3830.2,7.14212552]
[1641374878044,0.00508336,3830.3,3830.2,4.029]
[1641374878447,0.00508336,3830.3,3830.2,2.729]
[1641374878648,0.00508336,3830.3,3830.2,3.029]
[1641374878949,0.00508336,3830.3,3830.2,0.679]
[1641374879951,0.00508336,3830.3,3830.1,1.3056514]
[1641374880150,0.00508336,3830.3,3830.1,0.6528214]
[1641374880352,0.00451494,3830.2,3830.1,0.6528214]
[1641374881388,0.00451494,3830.2,3830.0,0.6528743]
[1641374881588,0.00451494,3830.2,3830.0,1.9586395]
[1641374881789,0.00394651,3830.1,3830.0,1.9586395]
[1641374881991,0.00394651,3830.1,3830.0,3.04461128]
[1641374882589,0.00394651,3830.1,3830.0,3.34461128]
[1641374884191,0.00394651,3830.1,3830.0,3.04461128]
[1641374884393,0.00394651,3830.1,3830.0,3.69744128]
[1641374884637,1.2369,3831.1,3830.4,0.65272]
[1641374884835,9.27580832,3831.3,3830.5,2.98888028]
[1641374885036,5.50750832,3831.3,3830.5,2.98888028]
[1641374885635,0.65272,3830.9,3830.5,3.28888028]
[1641374885841,1.95853,3831.3,3830.8,0.65268]
[1641374886039,1.95853,3831.3,3830.9,2.9223671]
[1641374886239,1.95853,3831.3,3830.8,2.14670569]
[1641374886639,1.95853,3831.3,3830.9,2.83275587]
[1641374887242,1.95853,3831.3,3831.0,1.3053437]
[1641374887441,1.30528,3831.7,3831.1,2.88009721]
[1641374887641,1.30528,3831.7,3831.1,3.18009721]
[1641374887841,1.30528,3831.7,3831.1,3.11896421]
[1641374888040,1.30528,3831.7,3831.1,3.21884434]
[1641374888494,1.30528,3831.7,3830.9,3.53178505]
[1641374888696,1.30528,3831.7,3831.4,2.50054885]
[1641374888893,1.30528,3831.7,3831.5,2.95039164]
[1641374889293,1.30528,3831.7,3831.5,2.99791101]
[1641374890697,1.30528,3831.7,3831.4,4.10572525]
[1641374891099,1.30528,3831.7,3831.4,2.57833816]
[1641374891899,1.30528,3831.7,3831.5,2.78680531]
[1641374892131,0.6622932,3831.8,3831.5,2.78680531]
[1641374892331,0.6622932,3831.8,3831.6,0.65258]
[1641374892535,3.1275259,3832.0,3831.7,3.57102036]
[1641374892731,3.1275259,3832.0,3831.7,0.379]
[1641374892934,0.0096632,3831.8,3831.7,0.379]
[1641374893536,0.0096632,3831.8,3831.7,1.03154]
[1641374893735,0.0096632,3831.8,3831.7,3.2891105]
[1641374894735,0.0096632,3831.8,3831.7,6.16826023]
[1641374896386,0.0096632,3831.8,3831.7,3.2891105]
[1641374896586,0.0096632,3831.8,3831.7,6.10878233]
[1641374896787,0.0096632,3831.8,3831.7,3.2891105]
[1641374896987,0.0096632,3831.8,3831.7,6.09707184]
[1641374897388,0.0096632,3831.8,3831.7,21.37707184]
[1641374897791,3.54824398,3832.6,3832.2,0.65232]
[1641374897989,4.1106586,3833.9,3832.3,4.12933685]
[1641374897990,3.2326,3833.3,3832.3,4.12933685]
[1641374898399,0.65233,3833.2,3832.9,1.10879546]
[1641374898692,0.01767477,3833.0,3832.9,1.10879546]
[1641374899092,0.01767477,3833.0,3832.9,1.76107546]
[1641374899292,0.00682108,3833.0,3832.9,6.5918261]
[1641374899538,0.00682108,3833.0,3832.9,3.68384518]
[1641374900343,0.00944002,3833.0,3832.9,3.68384518]
[1641374900742,0.00944002,3833.0,3832.9,2.57504972]
[1641374901643,0.00944002,3833.0,3832.9,1.62276972]
[1641374902643,0.00944002,3833.0,3832.8,0.65229]
[1641374902848,0.00944002,3833.0,3832.1,1.30497]
[1641374903044,0.65254,3832.5,3832.1,1.30497]
[1641374903283,1.30508,3832.6,3832.1,1.30497]
[1641374903486,0.00341054,3832.4,3832.1,1.30497]
[1641374903685,0.00397897,3832.5,3832.2,1.29613493]
[1641374903885,0.00284212,3832.3,3832.2,1.29613493]
[1641374904086,0.00341054,3832.4,3832.2,1.29613493]
[1641374904391,0.00284212,3832.3,3832.2,1.29613493]
[1641374905186,0.00284212,3832.3,3832.2,1.59613493]
[1641374905587,0.00261894,3833.0,3832.6,0.65235]
[1641374905788,0.00261894,3833.0,3832.7,0.65235]
[1641374905989,0.00341054,3832.9,3832.7,0.65235]
[1641374906388,1.09085763,3832.8,3832.7,0.65235]
[1641374906588,1.09085763,3832.8,3832.6,1.3047]
[1641374906787,0.00284212,3832.8,3832.7,3.46283466]
[1641374907048,0.00261894,3833.0,3832.7,0.65234]
[1641374907233,0.00261894,3833.0,3832.6,1.9571074]
[1641374907433,0.00341054,3832.9,3832.7,0.3]
[1641374907633,0.00341054,3832.9,3832.6,0.6524074]
[1641374907838,0.00284212,3832.8,3832.7,1.30469]
[1641374908038,0.00284212,3832.8,3832.7,1.95706]
[1641374908538,0.00284212,3832.8,3832.7,2.25706]
[1641374909639,0.00284212,3832.8,3832.7,5.06214757]
[1641374909840,0.00284212,3832.8,3832.7,2.25706]
[1641374910784,0.00284212,3832.8,3832.7,5.09569292]
[1641374910983,0.00284212,3832.8,3832.7,2.25706]
[1641374911585,0.00284212,3832.8,3832.7,5.07469637]
[1641374911783,0.00284212,3832.8,3832.7,5.25633146]
[1641374913989,0.01085369,3833.2,3832.8,3.55]
[1641374914189,0.01085369,3833.2,3833.0,0.6522]
[1641374914389,0.01085369,3833.2,3833.1,2.9372759]
[1641374914631,0.01085369,3833.2,3833.0,0.34881364]
[1641374914831,0.01312738,3833.2,3833.0,0.34881364]
[1641374915231,0.00227369,3833.2,3833.0,0.34881364]
[1641374915632,0.00227369,3833.2,3832.9,1.3044172]
[1641374918034,1.26362728,3833.1,3832.9,1.3044172]
[1641374918297,1.26362728,3833.1,3832.9,0.65222]
[1641374918498,0.00113684,3833.0,3832.9,0.65222]
[1641374921296,0.00113684,3833.0,3832.9,1.30458]
[1641374921695,0.00113684,3833.0,3832.9,4.17375526]
[1641374921895,0.00113684,3833.0,3832.9,1.30458]
[1641374922139,0.00113684,3833.0,3832.9,4.15024441]
[1641374922541,0.00113684,3833.0,3832.9,5.78627894]
[1641374923546,0.00113684,3833.0,3832.9,6.78627894]
[1641374924349,0.00352708,3833.4,3832.9,6.13391894]
[1641374924550,0.65581708,3833.4,3833.2,0.3]
[1641374924849,0.00170527,3833.3,3833.2,0.3]
[1641374926686,0.00170527,3833.3,3833.2,3.1735477]
[1641374928091,0.00352708,3833.4,3833.2,3.1735477]
[1641374928490,0.00352708,3833.4,3833.3,0.65221]
[1641374928690,4.12151229,3833.9,3833.5,1.10167773]
[1641374928893,4.12151229,3833.9,3833.6,0.6522]
[1641374929091,0.00284212,3833.8,3833.6,3.51887834]
[1641374929290,0.00284212,3833.8,3833.7,0.3]
[1641374929544,4.1106586,3833.9,3833.8,1.07438382]
[1641374929934,4.11406914,3833.9,3833.8,1.07438382]
[1641374930435,4.11406914,3833.9,3833.8,3.99996]
[1641374931439,4.11406914,3833.9,3833.8,1.07438382]
[1641374932338,4.11493506,3833.9,3833.8,1.07438382]
[1641374932540,4.11580098,3833.9,3833.8,1.07438382]
[1641374934995,4.11580098,3833.9,3833.8,3.95618043]
[1641374936797,4.11580098,3833.9,3833.8,1.07438382]
[1641374937032,4.11580098,3833.9,3833.8,3.9067792]
[1641374937234,4.11493506,3833.9,3833.8,3.9067792]
[1641374937636,4.11493506,3833.9,3833.8,4.2067792]
[1641374938235,4.11493506,3833.9,3833.8,4.8588954]
[1641374938640,4.11493506,3833.9,3833.8,5.1588954]
[1641374938840,4.11493506,3833.9,3833.8,4.8588954]
[1641374939441,4.11493506,3833.9,3833.8,2.02650002]
[1641374939842,4.11493506,3833.9,3833.8,2.32650002]
[1641374940647,4.11493506,3833.9,3833.8,2.02650002]
[1641374942806,4.11493506,3833.9,3833.8,0.9521162]
[1641374943007,4.11493506,3833.9,3833.8,0.6521162]
[1641374943207,4.11493506,3833.9,3833.7,1.95638]
[1641374943407,4.11406914,3833.9,3833.6,1.04697287]
[1641374943607,0.00284212,3833.8,3833.6,1.04697287]
[1641374943806,0.00284212,3833.8,3833.7,1.47177238]
[1641374944006,4.1106586,3833.9,3833.7,1.47177238]
[1641374944208,4.1106586,3833.9,3833.6,1.04697287]
[1641374945042,4.1106586,3833.9,3833.7,0.3]
[1641374945344,4.1106586,3833.9,3833.8,0.6522876]
[1641374945741,4.11406914,3833.9,3833.8,0.6522876]
[1641374946042,4.11406914,3833.9,3833.7,0.3]
[1641374946443,0.00284212,3833.8,3833.7,0.3]
[1641374947647,0.00284212,3833.8,3833.6,0.39477287]
[1641374947847,3.34746781,3833.8,3833.6,0.39477287]
[1641374948046,3.9022737,3833.7,3833.4,0.65239]
[1641374948303,3.9022737,3833.7,3833.4,0.95239]
[1641374948304,3.05500999,3833.6,3833.4,0.95239]
[1641374948502,3.05671526,3833.6,3833.4,0.95239]
[1641374948702,0.00113685,3833.5,3833.4,0.95239]
[1641374949503,3.01288206,3833.5,3833.4,0.95239]
[1641374949902,0.00113685,3833.5,3833.4,0.65239]
[1641374950704,3.0742498,3833.5,3833.4,0.65239]
[1641374951104,3.01422961,3833.5,3833.4,0.65239]
[1641374951304,0.00113685,3833.5,3833.4,0.65239]
[1641374953642,0.00113685,3833.5,3833.2,1.48194506]
[1641374953843,0.65237,3833.4,3833.2,1.78194506]
[1641374954643,0.65237,3833.4,3833.3,0.65237]
[1641374955044,0.65237,3833.4,3833.3,0.95237]
[1641374960139,0.65237,3833.4,3833.3,0.80237]
[1641374962542,3.00175849,3833.5,3832.3,0.38182315]
[1641374962837,0.65252,3833.0,3832.4,0.00511581]
[1641374963037,0.65254,3832.9,3832.4,0.00511581]
[1641374963292,3.18079208,3833.3,3832.4,0.00511581]
[1641374963495,2.1333,3833.4,3833.2,1.517365]
[1641374963696,1.0,3833.4,3833.2,2.169775]
[1641374963996,1.65244,3833.4,3833.2,2.169775]
[1641374964397,0.65244,3833.4,3833.2,2.169775]
[1641374964997,0.65244,3833.4,3833.2,2.119775]
[1641374965896,0.65244,3833.4,3833.2,2.419775]
[1641374966197,0.65244,3833.4,3833.2,2.719775]
[1641374968651,0.65244,3833.4,3833.2,2.419775]
[1641374970053,0.65244,3833.4,3833.2,2.119775]
[1641374970251,1.30484,3833.4,3833.2,2.119775]
[1641374971699,0.65244,3833.4,3833.2,2.719775]
[1641374971897,0.65244,3833.4,3833.2,2.419775]
[1641374972999,2.0420653,3833.4,3833.2,2.419775]
[1641374973395,0.65244,3833.4,3833.2,2.119775]
[1641374975444,1.30485,3833.4,3833.2,2.119775]
[1641374975846,0.65244,3833.4,3833.2,2.119775]
[1641374976647,1.30484,3833.4,3833.2,2.119775]
[1641374977547,0.65244,3833.4,3833.2,2.119775]
[1641374978993,0.65244,3833.4,3833.2,1.517365]
[1641374979195,0.65244,3833.4,3833.2,2.169745]
[1641374982044,0.65244,3833.4,3833.2,1.517365]
[1641374982444,1.30487,3833.4,3833.2,1.517365]
[1641374984149,0.65244,3833.4,3833.2,1.817365]
[1641374985144,0.65244,3833.4,3833.2,2.4696537]
[1641374985544,0.65244,3833.4,3833.2,3.1220337]
[1641374985791,0.65244,3833.4,3833.2,2.469745]
[1641374985993,0.65244,3833.4,3833.2,2.769745]
[1641374987894,0.65244,3833.4,3833.2,2.469745]
[1641374988294,0.65244,3833.4,3833.2,2.169745]
[1641374988699,1.03348473,3833.3,3832.8,0.379]
[1641374989101,0.65239,3833.2,3832.9,0.00227369]
[1641374989737,0.65239,3833.2,3833.1,1.28994804]
[1641374989936,2.33825473,3833.3,3833.1,1.28994804]
[1641374990137,2.33825473,3833.3,3833.1,1.59108488]
[1641374990338,2.33825473,3833.3,3833.2,0.3]
[1641374990637,2.33825473,3833.3,3833.1,0.30113684]
[1641374990837,2.99069473,3833.3,3833.1,0.00113684]
[1641374991039,3.03080774,3833.2,3833.1,0.00113684]
[1641374991245,2.99069473,3833.3,3833.1,0.00113684]
[1641374991442,2.99069473,3833.3,3832.1,1.30498]
[1641374991443,0.65249,3832.9,3832.4,0.0566]
[1641374991641,3.75124768,3832.9,3832.5,0.00454738]
[1641374991842,0.65249,3832.9,3832.5,0.00454738]
[1641374992043,0.65249,3832.9,3832.5,0.30454738]
[1641374992243,1.06084603,3832.6,3832.4,0.00397897]
[1641374992444,3.01464305,3832.5,3832.3,0.65251]
[1641374992644,1.71332603,3832.6,3832.3,0.65251]
[1641374993601,1.71332603,3832.6,3832.3,0.95251]
[1641374993796,1.71332603,3832.6,3832.3,1.25251]
[1641374994198,1.71332603,3832.6,3832.3,0.65251]
[1641374994597,0.65248,3832.6,3832.3,0.65251]
[1641374995205,0.65248,3832.6,3832.3,1.3049661]
[1641374995699,3.1800636,3832.5,3832.3,0.65251]
[1641374995899,0.65248,3832.6,3832.4,0.3]
[1641374996102,0.65248,3832.6,3832.3,0.3]
[1641374996500,0.65248,3832.6,3832.3,0.95251]
[1641374997945,3.18988425,3832.5,3832.3,0.95251]
[1641374998144,0.65248,3832.6,3832.3,0.95251]
[1641374998550,1.30503,3832.6,3832.2,1.69581082]
[1641374998751,1.30509,3832.5,3832.2,1.69581082]
[1641374998950,1.35922177,3832.4,3832.3,0.00113685]
[1641374999449,1.35922177,3832.4,3832.3,0.65364685]
[1641375000650,1.30509,3832.5,3832.3,0.95364685]
[1641375002092,1.30509,3832.5,3832.4,2.88582575]
[1641375003999,0.65248,3832.6,3832.4,4.84280645]
[1641375004195,0.65248,3832.6,3832.5,3.07625087]
[1641375004397,3.48315362,3833.5,3832.5,3.67625087]
[1641375004643,3.48315362,3833.5,3832.9,0.65231]
[1641375004843,3.48315362,3833.5,3833.0,2.83027288]
[1641375005045,3.48315362,3833.5,3832.7,1.95691]
[1641375005046,0.01085369,3833.6,3833.1,1.25855658]
[1641375005342,7.59381222,3833.9,3833.7,1.48342489]
[1641375005543,3.85225651,3833.8,3833.7,1.48342489]
[1641375006643,3.85225651,3833.8,3833.3,1.30466]
[1641375006944,1.30468,3833.6,3833.3,1.30466]
[1641375007143,1.30468,3833.6,3833.3,1.60466]
[1641375007343,1.30468,3833.6,3833.4,1.39639131]
[1641375007944,1.30468,3833.6,3833.4,1.69639131]
[1641375008144,0.00568423,3833.5,3833.4,1.69639131]
[1641375009401,0.00568423,3833.5,3833.4,4.52823812]
[1641375009402,0.15403195,3833.5,3833.4,4.52823812]
[1641375010203,0.15403195,3833.5,3833.4,1.69639131]
[1641375010402,0.65238,3833.7,3833.4,1.69639131]
[1641375010603,0.65238,3833.7,3833.5,0.6521405]
[1641375010803,0.65238,3833.7,3833.5,1.91371621]
[1641375011003,0.65238,3833.7,3833.5,2.21371621]
[1641375012146,0.65238,3833.7,3833.6,2.87857849]
[1641375012542,0.65351685,3833.7,3833.6,2.87857849]
[1641375014048,0.65351685,3833.7,3833.6,2.87937849]
[1641375016819,0.00113685,3833.7,3833.6,2.87937849]
[1641375017018,0.00113685,3833.7,3833.6,3.17937849]
[1641375017415,0.00113685,3833.7,3833.6,0.3008]
[1641375017615,0.00113685,3833.7,3833.6,2.8250192]
[1641375018217,0.00113685,3833.7,3833.6,0.0008]
[1641375023407,1.04858483,3833.7,3833.6,0.0008]
[1641375025605,1.04858483,3833.7,3833.6,1.21535625]
[1641375025806,0.00113685,3833.7,3833.6,1.21535625]
[1641375027078,1.23181722,3833.7,3833.6,1.21535625]
[1641375027249,1.7405391,3833.7,3833.6,1.21535625]
[1641375030356,1.7405391,3833.7,3833.6,0.0008]
[1641375032702,1.74053682,3833.7,3833.6,0.0008]
[1641375035047,0.74053682,3833.7,3833.6,0.0008]
[1641375038054,0.74053859,3833.7,3833.6,0.0008]
[1641375043562,0.74053766,3833.7,3833.6,0.0008]
[1641375048915,0.69053766,3833.7,3833.6,0.0008]
[1641375049117,0.18181722,3833.7,3833.6,0.0008]
[1641375049318,0.69053814,3833.7,3833.6,0.0008]
[1641375054509,0.69053718,3833.7,3833.6,0.0008]
[1641375060155,0.69053763,3833.7,3833.6,0.0008]
[1641375062098,3.29053763,3833.7,3833.6,0.0008]
[1641375065652,3.29051122,3833.7,3833.6,0.0008]
[1641375071007,2.78181722,3833.7,3833.6,0.0008]
[1641375071203,3.29053715,3833.7,3833.6,0.0008]
[1641375071804,5.3001623,3833.7,3833.6,0.0008]
[1641375072064,7.00469376,3833.7,3833.6,10.0]
[1641375072258,8.94288614,3833.7,3833.6,6.1256]
[1641375072557,0.65255,3832.6,3831.5,3.17310856]
[1641375072777,1.30509,3832.8,3832.5,1.49044573]
[1641375072778,1.12809591,3832.7,3832.5,1.49044573]
[1641375073364,1.30509,3832.8,3832.5,1.49044573]
[1641375073961,1.30509,3832.8,3832.5,2.14287573]
[1641375074161,1.30469,3833.0,3832.5,2.44287573]
[1641375074563,1.30469,3833.0,3832.6,2.92725292]
[1641375074762,1.30469,3833.0,3832.6,2.92924072]
[1641375074962,1.30469,3833.0,3832.7,0.00568424]
[1641375075163,1.30469,3833.0,3832.7,0.65803424]
[1641375075562,1.30469,3833.0,3832.8,0.00511581]
[1641375076613,0.50893001,3832.9,3832.8,0.00511581]
[1641375077413,0.50893001,3832.9,3832.8,2.8924141]
[1641375077614,0.50893001,3832.9,3832.8,0.00511581]
[1641375077812,0.50893001,3832.9,3832.8,2.86507628]
[1641375078014,0.50893001,3832.9,3832.8,0.00511581]
[1641375078920,0.50893001,3832.9,3832.8,0.30511581]
[1641375079317,0.50893001,3832.9,3832.8,0.00511581]
[1641375082158,0.50893182,3832.9,3832.8,0.00511581]
[1641375082360,3.77979678,3832.9,3832.8,0.00511581]
[1641375082758,3.77979678,3832.9,3832.1,0.00909478]
[1641375082959,4.43234298,3832.9,3832.1,0.00909478]
[1641375083161,0.65256,3832.6,3832.1,0.00909478]
[1641375083410,1.33871031,3832.2,3832.1,0.00909478]
[1641375083614,1.33871031,3832.2,3832.0,0.0096632]
[1641375083819,2.12381031,3832.2,3831.9,0.01023162]
[1641375084011,2.12381031,3832.2,3830.8,0.51719997]
[1641375084012,2.12381031,3832.2,3831.4,0.01307374]
[1641375084214,0.6527,3831.9,3831.4,0.01307374]
[1641375084413,0.6527,3831.9,3831.1,0.01477901]
[1641375084811,1.30474992,3831.3,3830.9,1.25471928]
[1641375085111,1.30474992,3831.3,3831.0,0.01534744]
[1641375085512,1.95743992,3831.3,3831.0,0.01534744]
[1641375085712,0.65269,3831.3,3831.0,0.01534744]
[1641375085912,3.25269,3831.3,3831.0,0.01534744]
[1641375086511,3.25269,3831.3,3831.0,1.62058744]
[1641375086913,3.25269,3831.3,3831.1,0.01477901]
[1641375087754,0.50935688,3831.2,3831.1,0.01477901]
[1641375088359,1.55529883,3831.2,3831.1,0.01477901]
[1641375089059,0.50935688,3831.2,3831.1,0.01477901]
[1641375090359,0.50935688,3831.2,3830.6,0.01762113]
[1641375090559,1.10204022,3830.9,3830.5,0.01818955]
[1641375090809,1.10204022,3830.9,3830.6,0.65276]
[1641375091011,1.10204022,3830.9,3830.4,0.01875798]
[1641375091211,1.10204022,3830.9,3830.7,0.01705271]
[1641375091413,1.10204022,3830.9,3830.3,0.0193264]
[1641375091613,1.10204022,3830.9,3830.0,3.1819]
[1641375091614,1.10204022,3830.9,3830.2,0.01989482]
[1641375091815,0.65276,3830.7,3830.2,0.01989482]
[1641375092416,0.65293,3830.5,3830.2,0.01989482]
[1641375092616,3.11495387,3830.4,3830.2,0.01989482]
[1641375092817,0.65293,3830.5,3830.2,0.01989482]
[1641375093017,1.30586,3830.5,3829.8,0.02216852]
[1641375093317,3.08545767,3830.4,3829.8,0.02216852]
[1641375093518,1.20241941,3829.9,3829.8,0.02216852]
[1641375093719,1.20241941,3829.9,3829.5,0.02387379]
[1641375094955,0.65296,3829.8,3829.5,0.02387379]
[1641375096959,3.25296,3829.8,3829.5,0.02387379]
[1641375098909,6.37268759,3829.8,3829.5,0.02387379]
[1641375099106,6.67268759,3829.8,3829.5,0.02387379]
[1641375099308,0.50980588,3829.6,3829.4,6.14]
[1641375099510,1.10610588,3829.6,3829.4,6.14]
[1641375100508,3.07743524,3829.5,3829.0,45.94194413]
[1641375100709,1.28955622,3829.3,3829.0,45.94194413]
[1641375100907,1.28955622,3829.3,3829.1,0.00227369]
[1641375100908,4.32287714,3829.3,3829.1,0.00227369]
[1641375101109,3.11270585,3829.2,3829.1,0.00227369]
[1641375101909,3.11270585,3829.2,3829.0,45.94194413]
[1641375102353,1.28955622,3829.3,3829.0,40.71645413]
[1641375102961,1.28955622,3829.3,3829.0,35.49090413]
[1641375103567,2.42370992,3829.4,3829.0,35.49090413]
[1641375103960,0.00113685,3829.3,3829.0,35.49090413]
[1641375104160,0.00113685,3829.3,3829.0,35.79090413]
[1641375104864,0.50994065,3829.1,3829.0,35.79090413]
[1641375105907,0.50994065,3829.1,3829.0,35.49090413]
[1641375106513,0.50994065,3829.1,3829.0,35.46008113]
[1641375110157,0.00113685,3829.3,3829.0,35.46008113]
[1641375110458,0.50991418,3829.1,3829.0,35.46008113]
[1641375115612,0.00113685,3829.3,3829.0,35.46008113]
[1641375115814,0.50994017,3829.1,3829.0,35.46008113]
[1641375119164,0.50994017,3829.1,3829.0,30.23427113]
[1641375121311,0.00113685,3829.3,3829.1,1.31412271]
[1641375121909,0.00113685,3829.3,3829.1,0.65296]
[1641375122813,0.00113685,3829.3,3829.1,1.50415102]
[1641375124118,0.00113685,3829.3,3829.0,30.23427113]
[1641375125567,0.00113685,3829.3,3829.0,31.48692865]
[1641375126769,0.00113685,3829.3,3829.1,0.65296]
[1641375126970,0.67633409,3830.0,3829.4,1.34062306]
[1641375127368,0.00227369,3829.7,3829.4,1.34062306]
[1641375127769,0.00170527,3829.6,3829.4,1.34062306]
[1641375128175,0.67633409,3830.2,3829.5,2.92512617]
[1641375128419,1.9591,3829.8,3829.5,0.65286]
[1641375128819,0.00227369,3829.7,3829.5,0.65286]
[1641375129221,1.9591,3829.8,3829.6,1.27840617]
[1641375129620,0.00227369,3829.7,3829.6,1.27840617]
[1641375130120,0.00227369,3829.7,3829.5,0.65286]
[1641375130521,0.00170527,3829.6,3829.5,3.57482825]
[1641375130921,0.00170527,3829.6,3829.5,3.95382825]
[1641375131123,0.00170527,3829.6,3829.5,1.03186]
[1641375131420,0.00170527,3829.6,3829.5,5.41194259]
[1641375131621,0.00170527,3829.6,3829.5,5.48094495]
[1641375132070,0.00170527,3829.6,3829.5,2.49399726]
[1641375132275,0.51151103,3829.6,3829.5,2.49399726]
[1641375132470,0.51151103,3829.6,3829.5,5.47511009]
[1641375133278,0.51151103,3829.6,3829.5,0.379]
[1641375134076,0.51151103,3829.6,3829.5,3.41275221]
[1641375134275,0.51151103,3829.6,3829.5,4.62266103]
[1641375134875,0.51151103,3829.6,3829.5,5.62266103]
[1641375135076,0.51151103,3829.6,3829.5,21.20266103]
[1641375135275,0.51151103,3829.6,3829.5,25.93466103]
[1641375135475,0.51151103,3829.6,3829.5,10.35466103]
[1641375135677,0.51151103,3829.6,3829.5,7.32090882]
[1641375137110,0.51151103,3829.6,3829.5,9.54942717]
[1641375137510,3.11151103,3829.6,3829.5,9.54942717]
[1641375137709,2.60170527,3829.6,3829.5,6.32090882]
[1641375137912,3.11151148,3829.6,3829.5,6.32090882]
[1641375141758,3.11151148,3829.6,3829.5,1.58890882]
[1641375142360,3.11151148,3829.6,3829.5,0.379]
[1641375142659,3.11151148,3829.6,3829.0,30.23427113]
[1641375142660,3.11151148,3829.6,3829.0,30.61327113]
[1641375142863,0.65299,3829.4,3829.0,30.61327113]
[1641375143059,0.65299,3829.4,3829.1,0.00113685]
[1641375143508,0.65299,3829.4,3829.0,31.86901826]
[1641375143710,0.00113684,3829.3,3829.0,31.86901826]
[1641375145207,0.00113684,3829.3,3829.0,32.52196826]
[1641375146608,0.00113684,3829.3,3829.0,31.23334738]
[1641375147758,0.00113684,3829.3,3829.1,0.65295]
[1641375147957,0.00113684,3829.3,3829.2,1.11974655]
[1641375148159,0.00113684,3829.3,3829.2,3.76974655]
[1641375148361,0.00113684,3829.3,3829.2,7.15512133]
[1641375148560,0.00113684,3829.3,3829.2,8.53412133]
[1641375148963,0.51102235,3829.3,3829.2,8.53412133]
[1641375149162,0.51102235,3829.3,3829.2,8.83412133]
[1641375149963,0.51102235,3829.3,3829.2,24.11412133]